Cogmind - Beta 17 @@@ ROGUE MODE // 2026.07.12 @ 23:43:18 Player: flowerfeast Result: Destroyed by as-14388 with Assembled Rifle Performance ------------- Evolutions (0) 0 Regions Visited (2) 400 Robots Destroyed (20) 100 Value Destroyed (421) 421 Prototype IDs (0) 0 Alien Tech Used (0) 0 Bonus (0) 0 TOTAL SCORE: 921 Bonus ------- None Cogmind --------- Core Integrity 0/250 Matter 252/300 Energy 100/100 System Corruption 0% Temperature Cool (0) Movement Walking (190) Ox1 Location -10/Mines Parts ------- > --- POWER (1) -------- (None) > --- PROPULSION (2) --- Aluminum Leg > --- UTILITY (2) ------ Medium Storage Unit Transport Network Coupler > --- WEAPON (2) ------- Improved Light Cannon Improved Light Cannon > --- INVENTORY (10) --- Hardened Light Armor Plating Hardened Light Armor Plating Hardened Light Armor Plating Hardened Light Armor Plating EM Pulse Gun Improved Light Cannon Improved Light Cannon Grenade Launcher Peak State ------------ > --- POWER ------------ Ion Engine > --- PROPULSION ------- Aluminum Leg Aluminum Leg > --- UTILITY ---------- Small Storage Unit Improved Terrain Scanner > --- WEAPON ----------- EM Pulse Gun Light Assault Rifle > --- INVENTORY -------- Light Ion Engine Light Treads Light Treads Light Assault Rifle [Rating: 9] Favorites ----------- Power Ion Engine Engine Ion Engine Propulsion Aluminum Leg Treads Light Treads Leg Aluminum Leg Utility Transport Network Coupler Device Improved Terrain Scanner Storage Medium Storage Unit Processor Transport Network Coupler Weapon Light Assault Rifle Energy Gun EM Pulse Gun Ballistic Gun Light Assault Rifle Ballistic Cannon Improved Light Cannon Build | -11 -10 -10 ------- Run | Yrd Mat Min Slots Evolved . | . . . Power . | . . . Propulsion . | . . . Utility . | . . . Weapon . | . . . Parts Attached 19 | 7 11 1 Power 3 | 1 2 . Engine 3 | 1 2 . Core . | . . . Reactor . | . . . Propulsion 5 | 2 2 1 Treads 2 | . 2 . Leg 3 | 2 . 1 Wheel . | . . . Hover . | . . . Flight . | . . . Utility 4 | 2 2 . Device 1 | 1 . . Storage 2 | 1 1 . Processor 1 | . 1 . Hackware . | . . . Protection . | . . . Artifact . | . . . Weapon 7 | 2 5 . Energy Gun 1 | 1 . . Energy Cannon . | . . . Ballistic Gun 4 | 1 3 . Ballistic Cannon 2 | . 2 . Launcher . | . . . Special Weapon . | . . . Impact Weapon . | . . . Slashing Weapon . | . . . Piercing Weapon . | . . . Special Melee Weapon . | . . . Unidentified Prototypes . | . . . Parts Lost 8 | . 7 1 Power 3 | . 3 . Propulsion 4 | . 3 1 Utility . | . . . Weapon 1 | . 1 . Highest Loss Streak 2 | . 2 1 To Critical Strikes . | . . . Average Backups 6 | 3 6 8 Power . | . . . Propulsion 1 | 1 1 . Utility 1 | . 1 4 Weapon 2 | . 2 4 Tool/Special . | . . . Unused Backups 9 | . 2 7 Power . | . . . Propulsion . | . . . Utility 4 | . . 4 Weapon 5 | . 2 3 Tool/Special . | . . . Average Slot Usage (%) 90 | . 92 67 Engine 10 | . 11 . Treads 7 | . 7 7 Leg 16 | . 18 3 Storage 14 | . 14 14 Processor 13 | . 13 14 Energy Gun 2 | . 2 . Ballistic Gun 18 | . 19 . Ballistic Cannon 6 | . 3 28 Peak Build Rating 9 | 9 9 8 Average Rating 7 | 6 7 7 On Entrance 5 | . 9 8 Avg Prop Armor Cover (%) . | . . . Naked Turns . | . . . Heaviest Build 21 | 14 21 18 Greatest Support 40 | 20 40 20 Greatest Overweight (x) 5 | . 1 5 Average Overweight (x) . | . . . Largest Inventory Capacity 10 | 8 10 10 Average Capacity 9 | 7 9 10 Most Carried 9 | 5 9 9 Average Carried 6 | 3 5 8 Final Capacity 10 | 8 10 10 Final Carried 8 | 4 8 8 Class Distribution -------------------- 100% | Mutant Dominant Class ---------------- Mutant | -10/Materials Mutant | -10/Mines Resources | -11 -10 -10 ----------- Run | Yrd Mat Min Matter Collected 535 | 273 222 40 Remotely . | . . . Salvage Created 545 | 127 410 8 Parts 30 | 4 26 . Haulers Intercepted 1 | . 1 . Recyclers Shooed 2 | . 2 . Parts Field Recycled . | . . . Retrieved Matter . | . . . Parts Self-Destructed . | . . . Prevented . | . . . Parts Restored . | . . . Kills | -11 -10 -10 ------- Run | Yrd Mat Min Combat Hostiles Destroyed 16 | . 14 2 Guns 13 | . 13 . Cannons 3 | . 1 2 Classes Destroyed 8 | 2 5 1 Worker 1 | . 1 . Tunneler 1 | 1 . . Hauler 1 | . 1 . Recycler 1 | 1 . . Swarmer 9 | . 9 . Grunt 4 | . 4 . Demolisher 2 | . . 2 Subdweller 1 | . 1 . Best Kill Streak 4 | 2 4 2 Combat Bots Only 3 | . 3 2 Max Kills in Single Turn 1 | 1 1 1 Gunslinging . | . . . Exploded . | . . . Melee . | . . . Uniques/NPCs Destroyed . | . . . Combat | -11 -10 -10 -------- Run | Yrd Mat Min Hostile Shots Fired 152 | . 138 14 Missed 34 | . 32 2 Hits 118 | . 106 12 Projectile 118 | . 106 12 AOE 6 | . . 6 Critical Strikes 1 | . 1 . Damage Taken 1419 | . 1133 286 Core 254 | . 175 79 Absorbed by Shields . | . . . Core Remaining (%) 100 | 100 . . Volleys Fired 95 | 3 85 7 Largest 2 | 2 2 2 Hottest 66 | 60 66 66 Shots Fired 176 | 6 156 14 Gun 158 | 6 152 . Cannon 18 | . 4 14 Launcher . | . . . Special . | . . . Kinetic 154 | 3 137 14 Thermal . | . . . Explosive . | . . . Electromagnetic 22 | 3 19 . Robot Hit Streak 10 | 3 9 10 Robot Miss Streak 5 | 1 5 2 Penetration Max . | . . . Secondary Targets 1 | . 1 . Max Gunslinging Chain 1 | . 1 . Shots Hit Robots 104 | 4 93 7 Core Hits 39 | 3 33 3 Critical Kills . | . . . Critical Parts Destroyed . | . . . Critical Strikes 1 | . . 1 Blast 1 | . . 1 Melee Attacks . | . . . Impact . | . . . Slashing . | . . . Piercing . | . . . Sneak Attacks . | . . . Combat Hostiles . | . . . Follow-up Attacks . | . . . Damage Inflicted 1042 | 42 860 140 Guns 821 | 42 779 . Cannons 198 | . 58 140 Explosions . | . . . Melee . | . . . Ramming 23 | . 23 . Kinetic 860 | 16 704 140 Thermal . | . . . Explosive . | . . . Electromagnetic 159 | 26 133 . Impact . | . . . Slashing . | . . . Piercing . | . . . Highest Corruption . | . . . Average Corruption . | . . . Corruption Purged . | . . . Corruption Blocked . | . . . Overload Shots . | . . . Overflow Damage . | . . . Projectiles . | . . . Explosions . | . . . Melee . | . . . Knockbacks 4 | . 1 3 Impact . | . . . Kinetic 4 | . 1 3 Secondary . | . . . Self-Inflicted Damage . | . . . Shots . | . . . Rammed . | . . . Targets Rammed 4 | . 4 . Kicked 4 | . 4 . Crushed . | . . . Highest Temperature 70 | 20 70 24 Average Temperature 23 | 15 24 18 Received Heat Transfer 282 | . 252 30 Siege Activations . | . . . Martial Activations . | . . . Shielding Activations . | . . . Robots Disrupted . | . . . Combat Hostiles . | . . . Robots Corrupted . | . . . Combat Hostiles . | . . . Parts Fried . | . . . Impact Corruptions . | . . . Robots Melted . | . . . Combat Hostiles . | . . . Parts Melted . | . . . Heat Transferred . | . . . Parts Sabotaged . | . . . Parts Stolen . | . . . Parts Stripped . | . . . Power Chain Reactions . | . . . Alert | -11 -10 -10 ------- Run | Yrd Mat Min Maximum Alert Level . | . . . Low Security (%) 100 | 100 100 100 Level 1 . | . . . Level 2 . | . . . Level 3 . | . . . Level 4 . | . . . Level 5 . | . . . High Security . | . . . Max Security . | . . . Peak Influence 90 | 5 90 50 Initial . | . . . Average 20 | . 21 15 Influence Increases 428 | 10 367 51 Destroy 0b10 Robot/C 300 | . 260 40 Destroy 0b10 Robot/NC 20 | 10 10 . Destroy Leader 62 | . 52 10 Disable Machine 30 | . 30 . Destroy Structure 1 | . . 1 Lose Combat Pursuer 15 | . 15 . Influence Decreases 398 | 10 367 21 Time Decay 348 | 10 317 21 Lost Part 50 | . 50 . Squads Dispatched 1 | . 1 . Investigation 1 | . 1 . Extermination . | . . . Reinforcement . | . . . Assault . | . . . Garrison . | . . . Intercept . | . . . Searches Triggered . | . . . Construction Impeded . | . . . Haulers Reinforced . | . . . Active Scanning Responses . | . . . Cargo Convoy Interrupts . | . . . Stealth | -11 -10 -10 --------- Run | Yrd Mat Min Distress Signals . | . . . Communications Jammed . | . . . Distress Signals . | . . . Times Spotted 31 | . 25 6 Peak Tracking Total 5 | . 5 2 Tactical Retreats 2 | . 2 . Traps | -11 -10 -10 ------- Run | Yrd Mat Min Traps Triggered . | . . . Indirectly . | . . . Trap Hack Attempts . | . . . Triggered . | . . . Disarmed . | . . . Reprogrammed . | . . . Reused . | . . . Traps Extracted . | . . . Installed . | . . . Triggered . | . . . Machines | -11 -10 -10 ---------- Run | Yrd Mat Min Machines Disabled 2 | . 2 . Max in Single Turn 1 | . 1 . Machines Repaired . | . . . Machines Dismantled . | . . . Machines Sabotaged . | . . . Overloaded Fab Kills . | . . . Hacking | -11 -10 -10 --------- Run | Yrd Mat Min Machines Accessed 3 | . 3 . Terminals 2 | . 2 . Fabricators . | . . . Repair Stations . | . . . Recycling Units 1 | . 1 . Scanalyzers . | . . . Garrison Access . | . . . Total Hacks 7 | . 7 . Successful 1 | . 1 . Failed 6 | . 6 . Catastrophic 2 | . 2 . Database Lockouts . | . . . Manual 6 | . 6 . Terminals 6 | . 6 . Fabricators . | . . . Repair Stations . | . . . Recycling Units 1 | . 1 . Scanalyzers . | . . . Garrison Access . | . . . Terminal Hacks . | . . . Fabricator Hacks . | . . . Repair Station Hacks . | . . . Recycling Unit Hacks 1 | . 1 . Report Inventory 1 | . 1 . Scanalyzer . | . . . Garrison Access Hacks . | . . . Unauthorized Hacks . | . . . Terminals . | . . . Fabricators . | . . . Repair Stations . | . . . Recycling Units . | . . . Scanalyzers . | . . . Garrison Access . | . . . Data Cores Recovered . | . . . Used . | . . . Hacking Detections 3 | . 3 . Full Trace Events 1 | . 1 . Feedback Events . | . . . Feedback Blocked . | . . . Robot Schematics Acquired . | . . . Robots Built . | . . . Authchips . | . . . Time . | . . . Total Robot Build Rating . | . . . Part Schematics Acquired . | . . . Parts Built . | . . . Authchips . | . . . Time . | . . . Total Part Build Rating . | . . . Part Studies Acquired . | . . . Parts Repaired . | . . . Time . | . . . Parts Recycled . | . . . Recycled Matter . | . . . Retrieved Matter . | . . . Retrieved Components . | . . . Parts Scanalyzed . | . . . Part Schematics Acquired . | . . . Parts Damaged . | . . . Bothacking | -11 -10 -10 ------------ Run | Yrd Mat Min Used RIF Installer . | . . . Robots Hacked . | . . . Non-combat . | . . . Combat . | . . . Robot Hacks Applied . | . . . Relay Couplers Released . | . . . Fabnet Peak Effective % . | . . . Robots Rewired . | . . . Allies Hacked . | . . . Hacks Repelled . | . . . Allies | -11 -10 -10 -------- Run | Yrd Mat Min Total Allies . | . . . Largest Group . | . . . Highest-Rated Group . | . . . Highest-Rated Ally . | . . . Total Orders . | . . . Ally Attacks . | . . . Total Damage . | . . . Kills . | . . . Allies Corrupted . | . . . Allies Melted . | . . . Intel | -11 -10 -10 ------- Run | Yrd Mat Min Active Infowar (turns) 1363 | 37 1211 115 Terrain 43 | 37 6 . T.N.C. 1320 | . 1205 115 Robot Analysis Total . | . . . Derelict Logs Recovered . | . . . Drone Launches . | . . . Drone Recoveries . | . . . Exploration | -11 -10 -10 ------------- Run | Yrd Mat Min Turns Passed 1425 | 93 1217 115 Spaces Moved 822 | 63 710 49 Core 19 | 12 . 7 Treads 232 | . 199 33 Legs 571 | 51 511 9 Wheels . | . . . Hover . | . . . Flight . | . . . Fastest Speed 50 | 50 120 160 Average Speed 132 | 106 131 185 Slowest Speed 300 | 120 240 300 Overloaded Moves . | . . . Propulsion Burnouts . | . . . Robots Hopped . | . . . Potential Cave-ins . | . . . Cave-ins Triggered . | . . . Exploration Rate (%) 38 | 4 97 13 Regions Visited 2 Branch Regions 1 Pre-discovered Areas . | . . . Known Exits Taken . | . . . Unknown Exits Taken 2 | 1 1 . Scrap Searched . | . . . Spaces Dug . | . . . Terrain Destroyed 2 | . . 2 Melee . | . . . Projectile 2 | . . 2 AOE . | . . . Terrain Rammed . | . . . Walls Destroyed . | . . . Machines Disabled . | . . . Actions | -11 -10 -10 --------- Run | Yrd Mat Min Total 1010 | 83 867 60 Wait 35 | . 35 . Move 820 | 62 709 49 Hop . | . . . Pick Up 28 | 11 16 1 Fast Attach . | . . . Attach 16 | 7 8 1 Detach . | . . . Swap 5 | . 3 2 Drop 7 | . 7 . Fire 95 | 3 85 7 Melee . | . . . Ram . | . . . Kick 4 | . 4 . Crush . | . . . Escape Stasis . | . . . Rewire . | . . . Trap . | . . . Miscellaneous . | . . . Route ------- -11/Scrapyard -10/Materials (discovered 4 exits: [*Mat x3] / [*Min]) -10/Mines History --------- Turn | Location | Event 7 | -11/Scrapyard | Discovered new exit (range 16) 94 | -11/Scrapyard | Entered Materials 317 | -10/Materials | Build established: Mutant 349 | -10/Materials | Discovered new exit (range 11) 511 | -10/Materials | Discovered new exit (range 16) 745 | -10/Materials | Discovered new exit (range 7) 894 | -10/Materials | Derelicts attacked the area 973 | -10/Materials | Core integrity fell below 50% 1188 | -10/Materials | Discovered new exit (range 14) 1311 | -10/Materials | Entered Mines 1312 | -10/Mines | Assembled infested the area 1314 | -10/Mines | Core integrity fell below 20% 1317 | -10/Mines | Assisted by a Guerilla fighting off Assembled 1426 | -10/Mines | Destroyed by as-14388 with Assembled Rifle Last Messages --------------- 01397_ U-05 Engineer lays Concrete. 01398_ U-05 Engineer builds a Wall. 01402_ U-05 Engineer lays Concrete. 01403_ U-05 Engineer builds a Wall. 01408_ U-05 Engineer lays Concrete. 01408_ Acquired 2 matter. 01408_ U-05 Engineer builds a Wall. 01412_ U-05 Engineer lays Concrete. 01413_ U-05 Engineer builds a Wall. 01415_ The unstable cave ceiling collapses. 01418_ U-05 Engineer lays Concrete. 01419_ The unstable cave ceiling collapses. 01419_ U-05 Engineer lays Concrete. 01420_ The unstable cave ceiling collapses. 01420_ U-05 Engineer lays Concrete. 01420_ U-05 Engineer builds a Wall. 01421_ U-05 Engineer lays Concrete. 01422_ U-05 Engineer builds a Wall. 01425_ The unstable cave ceiling collapses. 01426_ U-05 Engineer lays Concrete. Map ----- +----------------------------------------------------+ | ?????????????????????????????????????????????????? | | ?????????????????????????????????????????????????? | | ?????????????????????????????????????????????????? | | ?????????????????????????????????????????????????? | | ?????????????????????????????????????????????????? | | ?????????????????????????????????????????????????? | | ?????????????????????????????????????????????????? | | ?????????????????????????????????????????????????? | | ?????????????????????????????????????????????????? | | ?????????????????????????????????????????????????? | | ?????????????????????????????????????????????????? | | ?????????????????????????????????????????????????? | | ????????????????????????????##???????????????????? | | ???????????????????????????? ???????????????????? | | ?????????????????#?????????? #???????????????????? | | ????????????????? ?????????# #???????????????????? | | ????????????????#"#???????# ##??????????????????? | | ??????????????#?#%#????### #??????????????????? | | ?????????????## # ###### #??????????????????? | | ????????????## # # ## #???????????????????? | | ????????????# # ## # #????????????????????? | | ????????????## # ## # ##???????????????????? | | ????????????## %#%# # #???????????????????? | | ????????????# # # #???????? ?????????? | | ????????????# % # ## #### ????????? | | ????????????### #%uu @ #?????????? | | ??????????????# # #??????????? | | ??????????????#### ### ###???????????? | | ?????????????????#### # #??????????????????? | | ????????????????????##### ###??????????????????? | | ?????????????????????### # ##???????????????????? | | ???????????????????????### ##????????????????????? | | ?????????????????????????# #?????????????????????? | | ?????????????????????????#a#?????????????????????? | | ?????????????????????????# ######????????????????? | | ?????????????????????????# a #????????????????? | | ?????????????????????????###### #????????????????? | | ???????????????????????????#### ###??????????????? | | ???????????????????????????# #??????????????? | | ???????????????????????????# ####???????????? | | ???????????????????????????# !% %#???????????? | | ???????????????????????????# """%"#!#???????????? | | ???????????????????????????# """%## ??????????? | | ???????????????????????????# """ ##### #????????? | | ???????????????????????????# #?????#????????? | | ???????????????????????????########??????????????? | | ?????????????????????????????????????????????????? | | ?????????????????????????????????????????????????? | | ?????????????????????????????????????????????????? | | ?????????????????????????????????????????????????? | +----------------------------------------------------+ Best States ------------- Heat Dissipation 25 Energy Generation 10 Energy Capacity 250 Matter Stores 300 Matter Capacity 300 Sight Range 16 Terrain Scan Range 16 Terrain Scan Density 10 Evasion (%) 55 Recoil Reduction 2 Item Schematics ----------------- None Robot Schematics ------------------ None Fabricated ------------ Nothing Repaired ---------- Nothing Studied --------- None Alien Tech Used ----------------- None Achievements -------------- None Challenges ------------ None Game ------ Seed AngularBurstChronowheel Manual? 0 Play Time 00:12:07 Cumulative 12.7 hours Start 2026.07.12 @ 23:32:05 End 2026.07.12 @ 23:43:18 Sessions 1 Manual Loads 0 Difficulty Rogue Special Mode None Game No. 26 Rogue 25 Adventurer 1 Explorer 0 Win Type - Total 0 Types 0/0/0/0/0/0/0/0/0/0 Lore% 15 Gallery% 18 Achievement% 16 Wizard Run 0 Options --------- Layout 0 ASCII 0 Keyboard 0 Movement Mouse Keybinds 0 Fullscreen 2 Font 18/SmallcapsGlow Map View 38x25 Zoom Use 97% Tactical HUD 1 Map Filters NONE Filters NONE Steam 1 RUN: 39e4637b-783b-4663-98b2-8ee87ef63379